[Event "*** SCC Grand Prix: Titled Tuesday Blitz"]
[Site "Chess.com"]
[Date "2020.08.04"]
[Round "6"]
[White "CookiesAndIceCream"]
[Black "KatarinaOstojic"]
[Result "1/2-1/2"]
[WhiteElo "2401"]
[BlackElo "2217"]
[TimeControl "180+1"]
[EndTime "14:51:19 PDT"]
[Termination "Game drawn - insufficient material"]

1. e4 {[%clk 0:03:00.9]} 1... c5 {[%clk 0:02:59.8]} 2. Nf3 {[%clk 0:02:58.4]}
2... d6 {[%clk 0:03:00]} 3. d4 {[%clk 0:02:58.8]} 3... cxd4 {[%clk 0:03:00.9]}
4. Nxd4 {[%clk 0:02:58.9]} 4... Nf6 {[%clk 0:03:01.4]} 5. Nc3 {[%clk 0:02:58.6]}
5... a6 {[%clk 0:03:01.9]} 6. Be3 {[%clk 0:02:57.8]} 6... e5 {[%clk 0:03:01.7]}
7. Nb3 {[%clk 0:02:57.5]} 7... Be6 {[%clk 0:03:02.2]} 8. f3 {[%clk 0:02:58]}
8... Be7 {[%clk 0:03:01.7]} 9. Qd2 {[%clk 0:02:58.5]} 9... O-O {[%clk
0:03:02.3]} 10. O-O-O {[%clk 0:02:58.8]} 10... a5 {[%clk 0:03:02.9]} 11. a4
{[%clk 0:02:58.9]} 11... Nc6 {[%clk 0:03:02.6]} 12. g4 {[%clk 0:02:58.5]} 12...
Nb4 {[%clk 0:03:01.4]} 13. g5 {[%clk 0:02:56.6]} 13... Nh5 {[%clk 0:02:59.7]}
14. Bb5 {[%clk 0:02:52.2]} 14... f5 {[%clk 0:02:52.8]} 15. h4 {[%clk 0:01:50.3]}
15... fxe4 {[%clk 0:02:44.9]} 16. fxe4 {[%clk 0:01:46.9]} 16... Rc8 {[%clk
0:02:42.5]} 17. Kb1 {[%clk 0:01:46.4]} 17... d5 {[%clk 0:02:20.5]} 18. exd5
{[%clk 0:01:31.1]} 18... Bf5 {[%clk 0:02:20.5]} 19. Rc1 {[%clk 0:01:30.9]} 19...
Ng3 {[%clk 0:02:08.1]} 20. Rhe1 {[%clk 0:01:22.5]} 20... Ne4 {[%clk 0:02:06.2]}
21. Nxe4 {[%clk 0:01:09.4]} 21... Bxe4 {[%clk 0:02:07.1]} 22. Bb6 {[%clk
0:01:00.4]} 22... Bxc2+ {[%clk 0:01:42.9]} 23. Rxc2 {[%clk 0:00:54.1]} 23...
Qxb6 {[%clk 0:01:43.8]} 24. Rxc8 {[%clk 0:00:52.4]} 24... Rxc8 {[%clk
0:01:43.1]} 25. Rxe5 {[%clk 0:00:46.1]} 25... Qg1+ {[%clk 0:01:27.3]} 26. Re1
{[%clk 0:00:43.8]} 26... Qg3 {[%clk 0:01:24.6]} 27. Qe3 {[%clk 0:00:34.5]} 27...
Qxe3 {[%clk 0:00:28.3]} 28. Rxe3 {[%clk 0:00:35.4]} 28... Bd6 {[%clk 0:00:25]}
29. Nxa5 {[%clk 0:00:33.6]} 29... Bf4 {[%clk 0:00:25]} 30. Re8+ {[%clk
0:00:32.2]} 30... Rxe8 {[%clk 0:00:24.6]} 31. Bxe8 {[%clk 0:00:33.1]} 31... Nxd5
{[%clk 0:00:22.4]} 32. Nxb7 {[%clk 0:00:31.3]} 32... Nc7 {[%clk 0:00:19.1]} 33.
Bc6 {[%clk 0:00:26.4]} 33... Bg3 {[%clk 0:00:18.9]} 34. h5 {[%clk 0:00:26]}
34... Bf4 {[%clk 0:00:19]} 35. g6 {[%clk 0:00:25.6]} 35... hxg6 {[%clk
0:00:19.9]} 36. hxg6 {[%clk 0:00:25.7]} 36... Kf8 {[%clk 0:00:20.5]} 37. a5
{[%clk 0:00:25.5]} 37... Ke7 {[%clk 0:00:16.4]} 38. b4 {[%clk 0:00:24.5]} 38...
Be3 {[%clk 0:00:16.7]} 39. b5 {[%clk 0:00:24.2]} 39... Kf6 {[%clk 0:00:13.4]}
40. b6 {[%clk 0:00:20.5]} 40... Bxb6 {[%clk 0:00:05.7]} 41. axb6 {[%clk
0:00:18.1]} 41... Na8 {[%clk 0:00:06.3]} 42. Be4 {[%clk 0:00:15.3]} 42... Nxb6
{[%clk 0:00:07.2]} 43. Kc2 {[%clk 0:00:15.1]} 43... Nd7 {[%clk 0:00:05.9]} 44.
Nd6 {[%clk 0:00:15]} 44... Ne5 {[%clk 0:00:05.5]} 45. Ne8+ {[%clk 0:00:14.1]}
45... Kg5 {[%clk 0:00:05.8]} 46. Nxg7 {[%clk 0:00:12.3]} 46... Nxg6 {[%clk
0:00:06.3]} 47. Nf5 {[%clk 0:00:12.6]} 47... Nf4 {[%clk 0:00:05.7]} 48. Nd6
{[%clk 0:00:12.3]} 48... Ne6 {[%clk 0:00:05.7]} 49. Kd2 {[%clk 0:00:11]} 49...
Kf4 {[%clk 0:00:05.8]} 50. Bd5 {[%clk 0:00:09.9]} 50... Ke5 {[%clk 0:00:05.7]}
51. Bxe6 {[%clk 0:00:09.5]} 51... Kxd6 {[%clk 0:00:05.7]} 1/2-1/2

[Event "*** SCC Grand Prix: Titled Tuesday Blitz"]
[Site "Chess.com"]
[Date "2020.08.04"]
[Round "6"]
[White "xberli"]
[Black "Anna_ChessMate"]
[Result "0-1"]
[WhiteElo "2337"]
[BlackElo "2615"]
[TimeControl "180+1"]
[EndTime "14:51:21 PDT"]
[Termination "Anna_ChessMate won by resignation"]

1. e4 {[%clk 0:03:00.5]} 1... c6 {[%clk 0:02:59.5]} 2. d4 {[%clk 0:03:00.3]}
2... d5 {[%clk 0:03:00.4]} 3. e5 {[%clk 0:03:00.4]} 3... c5 {[%clk 0:02:58.2]}
4. dxc5 {[%clk 0:03:01.3]} 4... Nc6 {[%clk 0:02:57]} 5. a3 {[%clk 0:02:58.6]}
5... Nxe5 {[%clk 0:02:56.4]} 6. b4 {[%clk 0:02:58.3]} 6... Nf6 {[%clk
0:02:56.9]} 7. Nd2 {[%clk 0:02:50.9]} 7... Bg4 {[%clk 0:02:55.4]} 8. Ngf3 {[%clk
0:02:46.9]} 8... Nxf3+ {[%clk 0:02:51]} 9. Nxf3 {[%clk 0:02:47.8]} 9... a6
{[%clk 0:02:46.7]} 10. Bb2 {[%clk 0:02:45.9]} 10... e6 {[%clk 0:02:46.8]} 11.
Bd3 {[%clk 0:02:38]} 11... Be7 {[%clk 0:02:46.7]} 12. O-O {[%clk 0:02:36.6]}
12... O-O {[%clk 0:02:46.2]} 13. Qe2 {[%clk 0:02:35.8]} 13... b6 {[%clk
0:02:44.5]} 14. cxb6 {[%clk 0:02:11.2]} 14... Qxb6 {[%clk 0:02:45.4]} 15. Bd4
{[%clk 0:02:10.3]} 15... Qb7 {[%clk 0:02:40.6]} 16. Qe3 {[%clk 0:02:02.9]} 16...
Ne4 {[%clk 0:02:16.7]} 17. Ne5 {[%clk 0:01:33.1]} 17... Bf5 {[%clk 0:02:09.3]}
18. f3 {[%clk 0:01:30.9]} 18... Nd6 {[%clk 0:02:05.8]} 19. Bc5 {[%clk
0:01:21.9]} 19... Bxd3 {[%clk 0:02:00.2]} 20. cxd3 {[%clk 0:01:19.9]} 20... Nf5
{[%clk 0:01:59.6]} 21. Qf2 {[%clk 0:01:11.2]} 21... Rac8 {[%clk 0:01:51.3]} 22.
d4 {[%clk 0:01:07.7]} 22... Rfe8 {[%clk 0:01:41.9]} 23. Rfc1 {[%clk 0:01:04]}
23... Bg5 {[%clk 0:01:38.4]} 24. Re1 {[%clk 0:00:57.5]} 24... a5 {[%clk
0:01:19.7]} 25. bxa5 {[%clk 0:00:55.4]} 25... Qa6 {[%clk 0:01:15.8]} 26. Bb6
{[%clk 0:00:53.8]} 26... Rc3 {[%clk 0:01:14.3]} 27. f4 {[%clk 0:00:51.2]} 27...
Bh4 {[%clk 0:01:14.7]} 28. g3 {[%clk 0:00:47.1]} 28... Nxg3 {[%clk 0:01:09.4]}
29. Re3 {[%clk 0:00:32.2]} 29... Nf5 {[%clk 0:01:01.6]} 30. Rxc3 {[%clk
0:00:28.9]} 30... Bxf2+ {[%clk 0:01:00]} 31. Kxf2 {[%clk 0:00:29.8]} 31... f6
{[%clk 0:00:55.9]} 32. Nf3 {[%clk 0:00:28.3]} 32... Qb5 {[%clk 0:00:50.6]} 33.
Rac1 {[%clk 0:00:26.7]} 33... h5 {[%clk 0:00:46.4]} 34. Nd2 {[%clk 0:00:21.6]}
34... Qa4 {[%clk 0:00:41.8]} 35. Nf3 {[%clk 0:00:16.7]} 35... h4 {[%clk
0:00:40.5]} 36. Rb1 {[%clk 0:00:13.1]} 36... e5 {[%clk 0:00:33.4]} 37. fxe5
{[%clk 0:00:11.4]} 37... fxe5 {[%clk 0:00:32.4]} 38. Nxe5 {[%clk 0:00:10.9]}
38... Nxd4 {[%clk 0:00:19.4]} 39. Rb4 {[%clk 0:00:09.5]} 39... Rf8+ {[%clk
0:00:18.2]} 40. Ke3 {[%clk 0:00:07.4]} 40... Nf5+ {[%clk 0:00:18.1]} 41. Kd2
{[%clk 0:00:07.1]} 41... Qe8 {[%clk 0:00:17.3]} 42. Nd3 {[%clk 0:00:06.4]} 42...
d4 {[%clk 0:00:16]} 43. Rc7 {[%clk 0:00:05.5]} 43... Qe3+ {[%clk 0:00:15.3]} 44.
Kc2 {[%clk 0:00:05.8]} 44... Qe2+ {[%clk 0:00:15.7]} 45. Kb3 {[%clk 0:00:06.3]}
45... Qxd3+ {[%clk 0:00:16]} 46. Ka4 {[%clk 0:00:06.8]} 46... Rf7 {[%clk
0:00:13.9]} 47. Rc8+ {[%clk 0:00:06]} 47... Kh7 {[%clk 0:00:13.7]} 48. Rbc4
{[%clk 0:00:06.4]} 48... Nd6 {[%clk 0:00:13.7]} 49. R4c7 {[%clk 0:00:06]} 49...
Nxc8 {[%clk 0:00:13.3]} 50. Rxf7 {[%clk 0:00:05.7]} 50... Nxb6+ {[%clk
0:00:13.8]} 51. axb6 {[%clk 0:00:05.5]} 51... Qc4+ {[%clk 0:00:14.4]} 52. Ka5
{[%clk 0:00:06.4]} 52... Qxf7 {[%clk 0:00:15.2]} 53. Ka6 {[%clk 0:00:06.7]}
53... Qc4+ {[%clk 0:00:15.4]} 54. Ka7 {[%clk 0:00:06.7]} 54... Qa4+ {[%clk
0:00:15.5]} 0-1

[Event "*** SCC Grand Prix: Titled Tuesday Blitz"]
[Site "Chess.com"]
[Date "2020.08.04"]
[Round "6"]
[White "DariaVoit"]
[Black "crescentmoon2411"]
[Result "0-1"]
[WhiteElo "2533"]
[BlackElo "2773"]
[TimeControl "180+1"]
[EndTime "14:51:25 PDT"]
[Termination "crescentmoon2411 won by resignation"]

1. d4 {[%clk 0:03:00.9]} 1... Nf6 {[%clk 0:02:59.9]} 2. Nf3 {[%clk 0:03:01]}
2... d5 {[%clk 0:02:57.9]} 3. c4 {[%clk 0:03:01.2]} 3... e6 {[%clk 0:02:58]} 4.
g3 {[%clk 0:03:01.5]} 4... Bb4+ {[%clk 0:02:57.5]} 5. Bd2 {[%clk 0:03:01.7]}
5... Be7 {[%clk 0:02:57.7]} 6. Bg2 {[%clk 0:03:02]} 6... O-O {[%clk 0:02:58]} 7.
O-O {[%clk 0:03:02.1]} 7... c6 {[%clk 0:02:57.2]} 8. Qc2 {[%clk 0:03:02.6]} 8...
Nbd7 {[%clk 0:02:53.3]} 9. Rd1 {[%clk 0:03:02.4]} 9... b6 {[%clk 0:02:52.6]} 10.
Bf4 {[%clk 0:03:01.7]} 10... Nh5 {[%clk 0:02:44]} 11. Bc1 {[%clk 0:02:57]} 11...
f5 {[%clk 0:02:38.6]} 12. b3 {[%clk 0:02:51.2]} 12... Bb7 {[%clk 0:02:29.8]} 13.
Ba3 {[%clk 0:02:49.6]} 13... Bxa3 {[%clk 0:02:16]} 14. Nxa3 {[%clk 0:02:50.5]}
14... Qe7 {[%clk 0:02:16.4]} 15. Qb2 {[%clk 0:02:50.3]} 15... Nhf6 {[%clk
0:02:13]} 16. b4 {[%clk 0:02:43.1]} 16... a5 {[%clk 0:02:05.1]} 17. b5 {[%clk
0:02:40.4]} 17... c5 {[%clk 0:01:59.6]} 18. Rac1 {[%clk 0:02:32]} 18... Rac8
{[%clk 0:01:58.3]} 19. dxc5 {[%clk 0:02:12.8]} 19... Rxc5 {[%clk 0:01:51.9]} 20.
Nd4 {[%clk 0:01:51]} 20... Rfc8 {[%clk 0:01:48.6]} 21. cxd5 {[%clk 0:01:48.3]}
21... Rxc1 {[%clk 0:01:17.1]} 22. Rxc1 {[%clk 0:01:47.7]} 22... Rxc1+ {[%clk
0:01:16.8]} 23. Qxc1 {[%clk 0:01:48.6]} 23... Nxd5 {[%clk 0:01:09.5]} 24. Nc4
{[%clk 0:01:26.1]} 24... N7f6 {[%clk 0:00:55.6]} 25. Ne5 {[%clk 0:01:21.2]}
25... h6 {[%clk 0:00:46.2]} 26. h3 {[%clk 0:01:10.9]} 26... Kh7 {[%clk
0:00:44.4]} 27. Qc4 {[%clk 0:01:00.9]} 27... Qd6 {[%clk 0:00:36.9]} 28. Ndc6
{[%clk 0:00:45.4]} 28... Bxc6 {[%clk 0:00:35]} 29. Nxc6 {[%clk 0:00:39.5]} 29...
Nb4 {[%clk 0:00:25.1]} 30. Nxb4 {[%clk 0:00:38.6]} 30... axb4 {[%clk 0:00:26]}
31. Kh2 {[%clk 0:00:35.2]} 31... Kg6 {[%clk 0:00:16]} 32. Bc6 {[%clk 0:00:34]}
32... Kf7 {[%clk 0:00:15.1]} 33. Kg2 {[%clk 0:00:33.8]} 33... Ke7 {[%clk
0:00:15]} 34. e3 {[%clk 0:00:31.4]} 34... Qc5 {[%clk 0:00:14.8]} 35. Qd3 {[%clk
0:00:28.3]} 35... Nd5 {[%clk 0:00:12.6]} 36. Qd1 {[%clk 0:00:27.3]} 36... Qd6
{[%clk 0:00:09.6]} 37. Qa4 {[%clk 0:00:25.6]} 37... Qc5 {[%clk 0:00:05.8]} 38.
Qa7+ {[%clk 0:00:24.6]} 38... Kf6 {[%clk 0:00:06.2]} 39. Qb8 {[%clk 0:00:22.7]}
39... Kf7 {[%clk 0:00:03.1]} 40. Qd8 {[%clk 0:00:20.7]} 40... Ne7 {[%clk
0:00:02.8]} 41. Qe8+ {[%clk 0:00:18.6]} 41... Kf6 {[%clk 0:00:03.4]} 42. Qf8+
{[%clk 0:00:18.7]} 42... Kg6 {[%clk 0:00:02.7]} 43. Be8+ {[%clk 0:00:18.1]}
43... Kh7 {[%clk 0:00:03]} 44. Bf7 {[%clk 0:00:18]} 44... Qd5+ {[%clk
0:00:02.9]} 45. Kh2 {[%clk 0:00:17.9]} 45... Qc5 {[%clk 0:00:03.3]} 46. Bg8+
{[%clk 0:00:16.3]} 46... Nxg8 {[%clk 0:00:03.1]} 47. Qf7 {[%clk 0:00:09.2]}
47... Nf6 {[%clk 0:00:03]} 48. Qxe6 {[%clk 0:00:09]} 48... Qxb5 {[%clk
0:00:03.1]} 49. Kg2 {[%clk 0:00:08.3]} 49... Qd5+ {[%clk 0:00:03.2]} 50. Qxd5
{[%clk 0:00:08.6]} 50... Nxd5 {[%clk 0:00:04.1]} 51. Kf3 {[%clk 0:00:08.8]}
51... Nc3 {[%clk 0:00:04.4]} 52. e4 {[%clk 0:00:08.5]} 52... fxe4+ {[%clk
0:00:04]} 0-1

[Event "*** SCC Grand Prix: Titled Tuesday Blitz"]
[Site "Chess.com"]
[Date "2020.08.04"]
[Round "6"]
[White "JonahWillow"]
[Black "BernardoRoselli"]
[Result "0-1"]
[WhiteElo "2667"]
[BlackElo "2485"]
[TimeControl "180+1"]
[EndTime "14:51:25 PDT"]
[Termination "BernardoRoselli won on time"]

1. e4 {[%clk 0:03:00.9]} 1... e6 {[%clk 0:02:58.1]} 2. d4 {[%clk 0:03:00.7]}
2... d5 {[%clk 0:02:58.3]} 3. Nd2 {[%clk 0:02:57]} 3... a6 {[%clk 0:02:57.6]} 4.
Ngf3 {[%clk 0:02:51.3]} 4... c5 {[%clk 0:02:56.8]} 5. exd5 {[%clk 0:02:38.9]}
5... exd5 {[%clk 0:02:57.7]} 6. Bd3 {[%clk 0:02:38.8]} 6... Qe7+ {[%clk
0:02:54.3]} 7. Be2 {[%clk 0:02:36.6]} 7... Nf6 {[%clk 0:02:47.5]} 8. O-O {[%clk
0:02:32.6]} 8... Qd8 {[%clk 0:02:47.6]} 9. Re1 {[%clk 0:02:15.7]} 9... Be7
{[%clk 0:02:44.9]} 10. dxc5 {[%clk 0:02:15.7]} 10... O-O {[%clk 0:02:44.5]} 11.
Nb3 {[%clk 0:02:15.9]} 11... Nc6 {[%clk 0:02:40.4]} 12. c3 {[%clk 0:02:08.1]}
12... Re8 {[%clk 0:02:37.3]} 13. Be3 {[%clk 0:02:02.2]} 13... Bg4 {[%clk
0:02:36.9]} 14. h3 {[%clk 0:02:00.3]} 14... Bh5 {[%clk 0:02:36.2]} 15. Nfd4
{[%clk 0:01:50.9]} 15... Bxe2 {[%clk 0:02:35.6]} 16. Qxe2 {[%clk 0:01:47.2]}
16... Ne4 {[%clk 0:02:35.1]} 17. Nxc6 {[%clk 0:01:37]} 17... bxc6 {[%clk
0:02:35.2]} 18. Qg4 {[%clk 0:01:27.4]} 18... g6 {[%clk 0:02:19.1]} 19. Bd4
{[%clk 0:01:15.7]} 19... a5 {[%clk 0:02:16.2]} 20. a4 {[%clk 0:00:55.9]} 20...
Rb8 {[%clk 0:02:15.3]} 21. Qd1 {[%clk 0:00:53.1]} 21... Bf8 {[%clk 0:01:04.1]}
22. f3 {[%clk 0:00:44.8]} 22... Ng5 {[%clk 0:01:03.7]} 23. Rxe8 {[%clk 0:00:26]}
23... Qxe8 {[%clk 0:01:04.6]} 24. Qd2 {[%clk 0:00:24.3]} 24... Nxh3+ {[%clk
0:00:54]} 25. gxh3 {[%clk 0:00:22.9]} 25... Rxb3 {[%clk 0:00:54.9]} 26. Re1
{[%clk 0:00:20.2]} 26... Qb8 {[%clk 0:00:54.6]} 27. Re2 {[%clk 0:00:19.5]} 27...
Qg3+ {[%clk 0:00:52.2]} 28. Rg2 {[%clk 0:00:17.2]} 28... Qxf3 {[%clk 0:00:51.7]}
29. h4 {[%clk 0:00:15.1]} 29... h5 {[%clk 0:00:50.4]} 30. Qg5 {[%clk 0:00:10.2]}
30... Rb8 {[%clk 0:00:42.5]} 31. Qe5 {[%clk 0:00:08.9]} 31... f6 {[%clk
0:00:34.1]} 32. Qxb8 {[%clk 0:00:08.2]} 32... Kf7 {[%clk 0:00:23.5]} 33. Qc7+
{[%clk 0:00:06.7]} 33... Be7 {[%clk 0:00:23.6]} 34. Qg3 {[%clk 0:00:04]} 34...
Qe4 {[%clk 0:00:23.2]} 35. Qf2 {[%clk 0:00:03.3]} 35... Qb1+ {[%clk 0:00:21.6]}
36. Qf1 {[%clk 0:00:03.7]} 36... Qe4 {[%clk 0:00:21.5]} 37. Rh2 {[%clk
0:00:03.1]} 37... Qg4+ {[%clk 0:00:20.1]} 38. Qg2 {[%clk 0:00:04]} 38... Qd1+
{[%clk 0:00:20]} 39. Qf1 {[%clk 0:00:04.6]} 39... Qg4+ {[%clk 0:00:20]} 40. Kh1
{[%clk 0:00:05.5]} 40... Qe4+ {[%clk 0:00:19.9]} 41. Qg2 {[%clk 0:00:05.9]}
41... Qe1+ {[%clk 0:00:19.7]} 42. Bg1 {[%clk 0:00:06]} 42... Bxc5 {[%clk
0:00:18]} 43. Qf2 {[%clk 0:00:06.9]} 43... Bxf2 {[%clk 0:00:17.1]} 44. Rxf2
{[%clk 0:00:07.8]} 44... Qe4+ {[%clk 0:00:17.6]} 45. Kh2 {[%clk 0:00:05.8]}
45... Qxh4+ {[%clk 0:00:17.4]} 46. Kg2 {[%clk 0:00:06.7]} 46... Qe4+ {[%clk
0:00:17.9]} 47. Kf1 {[%clk 0:00:07.6]} 47... h4 {[%clk 0:00:17.7]} 48. Re2
{[%clk 0:00:08.5]} 48... Qf3+ {[%clk 0:00:17.1]} 49. Rf2 {[%clk 0:00:08.9]}
49... Qd3+ {[%clk 0:00:16.8]} 50. Kg2 {[%clk 0:00:09.8]} 50... Qe4+ {[%clk
0:00:16.8]} 51. Kf1 {[%clk 0:00:10.7]} 51... h3 {[%clk 0:00:16.7]} 0-1

[Event "*** SCC Grand Prix: Titled Tuesday Blitz"]
[Site "Chess.com"]
[Date "2020.08.04"]
[Round "6"]
[White "Alexander_Moskalenko"]
[Black "spicycaterpillar"]
[Result "1-0"]
[WhiteElo "2820"]
[BlackElo "2984"]
[TimeControl "180+1"]
[EndTime "14:51:28 PDT"]
[Termination "Alexander_Moskalenko won on time"]

1. c4 {[%clk 0:03:00.9]} 1... e5 {[%clk 0:02:59.7]} 2. Nc3 {[%clk 0:03:01.8]}
2... Nc6 {[%clk 0:02:59.8]} 3. Nf3 {[%clk 0:03:01]} 3... Nf6 {[%clk 0:02:57.1]}
4. d3 {[%clk 0:03:01.2]} 4... h6 {[%clk 0:02:43.6]} 5. a3 {[%clk 0:02:58.8]}
5... a6 {[%clk 0:02:32.6]} 6. b4 {[%clk 0:02:52.1]} 6... d5 {[%clk 0:02:26.9]}
7. cxd5 {[%clk 0:02:51.7]} 7... Nxd5 {[%clk 0:02:27.8]} 8. Bb2 {[%clk 0:02:51]}
8... Be7 {[%clk 0:02:21.1]} 9. e3 {[%clk 0:02:50.4]} 9... O-O {[%clk 0:02:19.7]}
10. Be2 {[%clk 0:02:51.1]} 10... Be6 {[%clk 0:01:59.8]} 11. O-O {[%clk
0:02:50.6]} 11... Nxc3 {[%clk 0:01:53.5]} 12. Bxc3 {[%clk 0:02:51.5]} 12... f6
{[%clk 0:01:53.2]} 13. Qc2 {[%clk 0:02:50.3]} 13... Qd7 {[%clk 0:01:47.2]} 14.
Rfd1 {[%clk 0:02:50.4]} 14... Rfd8 {[%clk 0:01:43.6]} 15. d4 {[%clk 0:02:50.6]}
15... exd4 {[%clk 0:01:27.7]} 16. Nxd4 {[%clk 0:02:51.5]} 16... Nxd4 {[%clk
0:01:28]} 17. Bxd4 {[%clk 0:02:52.1]} 17... Bd6 {[%clk 0:01:28.1]} 18. Bc5
{[%clk 0:02:47.6]} 18... Qe7 {[%clk 0:01:23.9]} 19. Bxd6 {[%clk 0:02:47.2]}
19... Rxd6 {[%clk 0:01:24.8]} 20. Rxd6 {[%clk 0:02:47.4]} 20... Qxd6 {[%clk
0:01:25]} 21. Rd1 {[%clk 0:02:48.1]} 21... Qe7 {[%clk 0:01:25.3]} 22. Qe4 {[%clk
0:02:40]} 22... c6 {[%clk 0:01:10.9]} 23. h4 {[%clk 0:02:26.1]} 23... Re8 {[%clk
0:01:06.9]} 24. Bh5 {[%clk 0:02:21.9]} 24... Bd5 {[%clk 0:00:46]} 25. Qf5 {[%clk
0:01:41.6]} 25... Qe4 {[%clk 0:00:32.8]} 26. Qxe4 {[%clk 0:01:36.2]} 26... Rxe4
{[%clk 0:00:33.7]} 27. Bf3 {[%clk 0:01:36.8]} 27... Rxh4 {[%clk 0:00:24.8]} 28.
Bxd5+ {[%clk 0:01:35.6]} 28... cxd5 {[%clk 0:00:25.7]} 29. Rxd5 {[%clk
0:01:36.1]} 29... Rc4 {[%clk 0:00:20.9]} 30. Rd7 {[%clk 0:01:20.7]} 30... b5
{[%clk 0:00:18.2]} 31. Rd6 {[%clk 0:01:17.4]} 31... a5 {[%clk 0:00:16.5]} 32.
bxa5 {[%clk 0:00:57.2]} 32... Ra4 {[%clk 0:00:17.4]} 33. a6 {[%clk 0:00:56.8]}
33... Rxa3 {[%clk 0:00:17.6]} 34. Rb6 {[%clk 0:00:57.5]} 34... b4 {[%clk
0:00:18]} 35. g4 {[%clk 0:00:57.6]} 35... b3 {[%clk 0:00:18.1]} 36. Kg2 {[%clk
0:00:58.1]} 36... b2 {[%clk 0:00:18.5]} 37. Kg3 {[%clk 0:00:57.2]} 37... Rxa6
{[%clk 0:00:17.9]} 38. Rxb2 {[%clk 0:00:57.5]} 38... Ra4 {[%clk 0:00:17.6]} 39.
Rb7 {[%clk 0:00:56.9]} 39... Re4 {[%clk 0:00:15.5]} 40. Kf3 {[%clk 0:00:56]}
40... Rc4 {[%clk 0:00:15.3]} 41. e4 {[%clk 0:00:56.2]} 41... Kh7 {[%clk
0:00:14.7]} 42. Kf4 {[%clk 0:00:56.2]} 42... Kg6 {[%clk 0:00:15.2]} 43. f3
{[%clk 0:00:56.6]} 43... Ra4 {[%clk 0:00:14.7]} 44. Rc7 {[%clk 0:00:56.7]} 44...
Rb4 {[%clk 0:00:14.6]} 45. Re7 {[%clk 0:00:57.2]} 45... Ra4 {[%clk 0:00:14.8]}
46. Kg3 {[%clk 0:00:57.8]} 46... Ra3 {[%clk 0:00:14.4]} 47. Rb7 {[%clk
0:00:56.9]} 47... Rc3 {[%clk 0:00:14.1]} 48. Rb6 {[%clk 0:00:55]} 48... Ra3
{[%clk 0:00:13.8]} 49. e5 {[%clk 0:00:55.1]} 49... Kf7 {[%clk 0:00:12]} 50. Rb7+
{[%clk 0:00:51.5]} 50... Kg6 {[%clk 0:00:10.6]} 51. e6 {[%clk 0:00:46.2]} 51...
Re3 {[%clk 0:00:08.9]} 52. e7 {[%clk 0:00:46.1]} 52... Kf7 {[%clk 0:00:05]} 53.
e8=Q+ {[%clk 0:00:45.7]} 53... Kxe8 {[%clk 0:00:05.1]} 54. Rxg7 {[%clk
0:00:46.4]} 54... Kf8 {[%clk 0:00:05.1]} 55. Rh7 {[%clk 0:00:46.3]} 55... Kg8
{[%clk 0:00:05]} 56. Rxh6 {[%clk 0:00:46.6]} 56... Kg7 {[%clk 0:00:05.9]} 57.
Rh5 {[%clk 0:00:47.1]} 57... Kg6 {[%clk 0:00:06.3]} 58. Rh8 {[%clk 0:00:46.6]}
58... Re1 {[%clk 0:00:06.6]} 59. Rg8+ {[%clk 0:00:46.4]} 59... Kf7 {[%clk
0:00:06.5]} 60. Ra8 {[%clk 0:00:47.3]} 60... Rb1 {[%clk 0:00:06.4]} 61. f4
{[%clk 0:00:41.5]} 61... Rg1+ {[%clk 0:00:06]} 62. Kf3 {[%clk 0:00:41.8]} 62...
Rf1+ {[%clk 0:00:05.2]} 63. Ke4 {[%clk 0:00:41.9]} 63... Rb1 {[%clk 0:00:05]}
64. Ra7+ {[%clk 0:00:41.6]} 64... Ke6 {[%clk 0:00:01.7]} 65. f5+ {[%clk
0:00:38.3]} 65... Kd6 {[%clk 0:00:02]} 66. Rf7 {[%clk 0:00:38.8]} 1-0